Workbook

Sheet （計算方法） (hidden)
A3: ※ | B3: 退職手当の給料月額 | E3: ＝ | F3: 本俸（給料表の月額） | I3: ＋ | J3: 教職調整額 | L3: ＋ | M3: 給料の調整額
L4: （福利厚生ハンドブック 26貢参照）
B6: 本俸 | D6: ・・・・・ | E6: 給料表上の月額です。
B8: 教職調整額 | D8: ・・・・・ | E8: 校長（県立） ３，８００円 （小中） ４，０００円 ／ 副校長・教頭 １１，５００円 ／教諭 給料表上の月額×５％ （R8.4.1現在）
E9: ※満60歳年度末年月日が R7.3.31 の場合は、以下のとおりとなります。
E10: 副校長・教頭（県立）７，７００円 ／ 副校長・教頭（小中）７，５００円 ／ 教諭 給料表上の月額×４％
B12: 給料の調整額 | D12: ・・・・・ | E12: 特別支援学校（学級）に従事する教員が該当します。 調整基本額×１．００（R8.4.1現在）

Sheet 試算シートの使い方
A1: 退職手当試算シート【定年・定年扱い退職者用】の使用について
H2: R8.4.1 現在
A3: １ 用意するもの
A4: （１） | B4: 履歴書
A5: （２） | B5: 給与明細（満６０歳年度内最新のもの）
A6: （３） | B6: 給与明細（退職年度内最新のもの）
A8: ２ 使用方法
A9: （１） | B9: 入力シートを開きます。
A10: （２） | B10: 入力シートの説明を参考に履歴書等を見ながら該当箇所に入力してください。
A12: ※ 不明な点は、所属の事務職員に確認するか、福利課企画管理班まで御連絡く
A13: ださい。（022-211-3672）
A61: ３ 試算結果の印刷
A63: （１） ５ 調整額まで入力し終わりましたら、印刷シートを開きます。
A76: （２） 試算結果が表示されていますので、印刷してください。
A78: （３） 試算結果が表示されていますので、印刷してください。
A79: （２） 試算結果が表示されていますので、印刷してください。
A80: （１） 試算結果が表示されていますので、印刷してください。
A81: （０） 試算結果が表示されていますので、印刷してください。
A82: （１） 試算結果が表示されていますので、印刷してください。

Sheet 入力シート
B2: 退職手当試算入力シート【定年・定年扱い退職者用】
AN3: 入力箇所(必須） | BA3: 入力箇所（場合によって）
B5: こちらのシートは、定年引上げ後の定年扱い退職年度に退職される方の、おおよその退職手当額を試算します。 正確な退職手当額は昇給等を考慮した上で決定されることとなりますので、参考程度にお考えください。 黄色セル、（場合によっては）青色セルに入力してください。
A7: 1 | B7: 試算希望者の氏名を入力してください。
B9: 氏 名
B10: 福 花子
A13: 2 | B13: 退職事由を選んでください。（プルダウンから選択してください。）
B14: 定年扱い | Q14: ※退職事由によって退職手当額が大きく異なります。
Q15: ※退職年月日が６０歳の誕生日以降であれば、定年を選んでください。
A17: 2 | B17: 採用年月日、満60歳年度末及び退職年月日を入力してください。
B18: また、休職等除算期間がある場合には入力してください。
B20: 採用年月日 | P20: 1991-04-01 | AJ20: 満60歳年度末勤続期間 | AX20: =TRUNC(IF(MONTH(P22)<MONTH(P20),(YEAR(P22)-YEAR(P20))*12+MONTH(P22)-MONTH(P20)+1,(YEAR(P22)-YEAR(P20))*12+MONTH(P22)-MONTH(P20)+1)/12) -> 35 | BB20: 年 | BF20: =MOD(IF(MONTH(P22)<MONTH(P20),(YEAR(P22)-YEAR(P20))*12+MONTH(P22)-MONTH(P20)+1,(YEAR(P22)-YEAR(P20))*12+MONTH(P22)-MONTH(P20)+1),12) -> 0 | BJ20: 月 | BO20: a | BQ20: =(YEAR(P22)-YEAR(P20))*12+MONTH(P22)-MONTH(P20)+1 -> 420 | BV20: 満60歳
B22: 満60歳年度末年月日 | P22: 2026-03-31 | AJ22: 退職時勤続期間 | AX22: =TRUNC(((YEAR(P24)-YEAR(P20))*12 + MONTH(P24) - MONTH(P20) + 1) / 12) -> 36 | BB22: 年 | BF22: =MOD((YEAR(P24)-YEAR(P20))*12 + MONTH(P24) - MONTH(P20) + 1, 12) -> 0 | BJ22: 月 | BO22: a' | BQ22: =(YEAR(P24)-YEAR(P20))*12+MONTH(P24)-MONTH(P20)+1 -> 432 | BV22: 定年退職時
B24: 退職年月日 | P24: 2027-03-31
B26: ※ 前歴に他の公務員期間があり、引き続いて採用になった方は、その期間が通算される場合があります。
B27: この場合には、前歴も含めた採用年数を入力してください。
C28: (1) 育児休業
F29: 子の誕生日 | P29: 1993-12-25 | AW29: 除算（１）
F30: 休業期間 | P30: 1994-02-19 | AD30: ～ | AH30: 1995-03-31 | AW30: =IFERROR(ROUNDDOWN(BW33/12,0),0) -> 0 | BB30: 年 | BE30: =IFERROR(MOD(BW33,12),0) -> 4.8 | BK30: 月除算
P32: 子が１歳になる日 | BL32: 月数 | BN32: 割合
F33: =EOMONTH(P33,-1) -> 1994-11-30 | P33: =P29+364 -> 1994-12-24 | AA33: ① | AD33: =IF(P30="","",IF(DAY(P30)=1,P30,IF(DAY(P30)<>1,EOMONTH(P30,0)+1,""))) -> 1994-03-01 | AV33: =IF(AH30>P33,EOMONTH(F33,1),IF(AH30="","",IF(EOMONTH(AH30,0)<>AH30,EOMONTH(AH30,-1),IF(AH30=EOMONTH(AH30,0),AH30,"")))) -> 1994-12-31 | BJ33: =IFERROR(DATEDIF(AD33,AV33,"M")+1,"") -> 10 | BN33: 3 | BS33: =IFERROR(ROUNDDOWN(BJ33/BN33,1),0) -> 3.3 | BW33: =IFERROR(BS33+BS34,"") -> 4.8
AA34: ② | AD34: =IF(AV33<>F33,AV33+1,"") -> 1995-01-01 | AV34: =IF(AH30="","",IF(EOMONTH(AH30,0)<>AH30,EOMONTH(AH30,-1),IF(AH30=EOMONTH(AH30,0),AH30,""))) -> 1995-03-31 | BJ34: =IFERROR(DATEDIF(AD34,AV34,"M")+1,"") -> 3 | BN34: 2 | BS34: =IF(BJ34="",0,(ROUNDDOWN(BJ34/BN34,1))) -> 1.5
C35: (2) 休職、停職、大学院修学休業
F36: 休業種類 | P36: 休職 | AW36: 除算（２）
F37: 休業期間 | P37: 2020-01-02 | AD37: ～ | AH37: 2020-03-31 | AW37: =IFERROR(ROUNDDOWN(BW40/12,0),0) -> 0 | BB37: 年 | BE37: =IFERROR(MOD(BW40,12),0) -> 1 | BK37: 月除算
BL39: 月数 | BN39: 割合
AD40: =IF(P37="","",IF(DAY(P37)=1,P37,IF(DAY(P37)<>1,EOMONTH(P37,0)+1,""))) -> 2020-02-01 | AV40: =IF(AH37="","",IF(EOMONTH(AH37,0)<>AH37,EOMONTH(AH37,-1),IF(AH37=EOMONTH(AH37,0),AH37,""))) -> 2020-03-31 | BJ40: =IFERROR(DATEDIF(AD40,AV40,"M")+1,"") -> 2 | BN40: 2 | BS40: =IFERROR(ROUNDDOWN(BJ40/BN40,1),0) -> 1 | BW40: =IFERROR(BS40+BS41,"") -> 1 | BZ40: ｂ | CA40: =IFERROR(BZ41*12+CB41,0) -> 19.8
BS41: =IF(BJ41="",0,(ROUNDDOWN(BJ41/BN41,1))) -> 0 | BZ41: =IFERROR(AW30+AW37,"")+P45 -> 1 | CA41: 年 | CB41: =IFERROR(BE30+BE37,"")+W45 -> 7.8 | CC41: 月
C43: (3) 上記以外に除算期間がある場合
AG44: 勤続年数 | AS44: 満60歳年度末 | BF44: =IF(BU44="",0,IF(AND(BU44>=6,BU44<12),1,IFERROR(ROUNDDOWN(BU44/12,0),"1"))) -> 33 | BM44: 年 | BP44: a-b | BU44: =IF(BQ20="","",IFERROR(BQ20-CA40,"")) -> 400.2
F45: さらに除く年月数 | P45: 1 | U45: 年 | W45: 2 | AB45: 月 | BP45: a'-b | BU45: =IF(BQ22="","",IFERROR(BQ22-CA40,"")) -> 412.2
AS46: 退職時 | BF46: =IF(BU45="",0,IF(AND(BU45>=6,BU45<12),1,IFERROR(ROUNDDOWN(BU45/12,0),"1"))) -> 34 | BM46: 年
AG47: （１年未満切り捨て）
B49: ※ 除算期間が（１）、（２）以外にある場合は、下記の表を参考に（３）に入力してください。
A61: 3 | B61: 給料表、号俸と、教職調整額、給料の調整額（発令されている場合）を入力します。
B62: 手元にある書類にしたがって、（１）と（２）どちらかに入力してください。
B64: （１）手元にあるものが 履歴書 の場合
D65: ※ 満60歳年度の最新の給与発令を入力してください。
D66: 満61歳年度の7割措置後の給料額等は自動計算されます。
B67: 給料表 | U67: 号俸 | AN67: 給料の調整数
B68: 教育（一） | U68: 4 | Z68: 級 | AC68: 21 | AH68: 号俸
AC70: .
U71: =IFERROR(給料表計算シート!E12,"") -> 496800
B72: 労務職員（技能職給料表適用職員）の場合は平成２７年３月３１日現在の号俸も入力して下さい。 | U72: Ｈ27.3.31現在号俸 | AN72: Ｈ27.3.31現在仮定月額
R73: ⇒ | Z73: 級 | AH73: 号俸 | AN73: =IF(給料表計算シート!E21="",0,給料表計算シート!E21) -> 0 | BA73: 円
B76: 給料（給料表上の月額）A | U76: 教職調整額 B | AN76: 給料の調整額 C
B77: =IF(U71>AN73,U71,IF(U71>AN73,U71,AN73)) -> 496800 | O77: 円 | U77: =IF($P$22=DATE(2025,3,31), IF(AND(B68="教",U68=4),0, IF(AND(B68="教育（一）",U68=3),7700, IF(AND(B68="教育（二）",U68=3),7500, IF(AND(B68<>"教",ISNUMBER(SEARCH("教",B68)),OR(U68=1,U68=2)),B77*0.04,0)))), IF(AND(B68="教育（一）",U68=3),11500, IF(AND(B68="教育（二）",U68=3),11500, IF(AND(B68="教育（一）",U68=4),3800, IF(AND(B68="教育（二）",U68=4),4000, IF(AND(B68<>"教",ISNUMBER(SEARCH("教",B68)),OR(U68=1,U68=2)),B77*0.05,0)))))) -> 3800 | AH77: 円 | AN77: =IF(AN68=1, 給料表計算シート!F12, 0) -> 0 | BA77: 円 | BG77: =SUM(B77+U77+AN77) -> 500600
B80: ７割措置後の給料 D （A×70％） | U80: ７割措置後の教職調整額 E（D×5％ 教育職のみ） | AN80: ７割措置後の給料の調整額 F（C×70％ 教育職のみ）
B81: =ROUND(B77 * 0.7, -2) -> 347800 | O81: 円 | U81: =IF(OR(B68="教育（一）", B68="教育（二）"), B81 * 0.05, 0) -> 17390 | AH81: 円 | AN81: =ROUNDDOWN(AN77*0.7,-2) -> 0 | BA81: 円 | BG81: =SUM(B81+U81+AN81) -> 365190
A84: ※ | B84: 教育（一）は高校等の教員、教育（二）は小中学校の教員の給料表です。
A85: ※ | B85: 医療職（二）は栄養職員等の給料表です。
B100: （２）手元にあるものが 給与明細 の場合
D101: ※ 満６０歳年度内の最新の明細を参照してください。
B102: 満60歳年度給料月額（調整額含） | AD102: 満60歳年度教職調整額
X103: 円 | AZ103: 円 | BN103: =SUM(B103+AD103) -> 0
D105: ※ 退職年度内最新の明細を参照してください。
B106: 退職年度給料月額（調整額含） | AD106: 退職年度教職調整額
X107: 円 | AZ107: 円 | BN107: =SUM(B107+AD107) -> 0
A123: 4 | B123: 調整額を算出します。
B124: 満６０歳の年度から遡って６年間の 職名 または 給料表および号俸 を入力してください。
B126: （１）教職職給料表(一)(二)が適用されている者
B127: 年度 | Q127: 職名 | Z127: 区分 | AF127: 調整月数 | AL127: 調整額
BY128: 校長 | BZ128: 第５号 | CA128: 54150
B129: 満６０歳の年度 | Q129: 教頭 | Z129: =IF(Q129="","",VLOOKUP(Q129,$BY$128:$CA$132,2,0)) -> 第７号 | AF129: =IF(ISBLANK(Q129), "", 12) -> 12 | AL129: =IF(Q129="","",VLOOKUP(Q129,$BY$128:$CA$132,3,0)*AF129) -> 390000 | BY129: 副校長 | BZ129: 第６号 | CA129: 43350
BY130: 教頭 | BZ130: 第７号 | CA130: 32500
B131: 満５９歳の年度 | Q131: 教頭 | Z131: =IF(Q131="","",VLOOKUP(Q131,$BY$128:$CA$132,2,0)) -> 第７号 | AF131: =IF(ISBLANK(Q131), "", 12) -> 12 | AL131: =IF(Q131="","",VLOOKUP(Q131,$BY$128:$CA$132,3,0)*AF131) -> 390000 | BY131: 教諭(特２) | BZ131: 第８号 | CA131: 27100
BY132: 教諭 | BZ132: 第９号 | CA132: 21700
B133: 満５８歳の年度 | Q133: 教頭 | Z133: =IF(Q133="","",VLOOKUP(Q133,$BY$128:$CA$132,2,0)) -> 第７号 | AF133: =IF(ISBLANK(Q133), "", 12) -> 12 | AL133: =IF(Q133="","",VLOOKUP(Q133,$BY$128:$CA$132,3,0)*AF133) -> 390000
B135: 満５７歳の年度 | Q135: 教諭 | Z135: =IF(Q135="","",VLOOKUP(Q135,$BY$128:$CA$132,2,0)) -> 第９号 | AF135: =IF(ISBLANK(Q135), "", 12) -> 12 | AL135: =IF(Q135="","",VLOOKUP(Q135,$BY$128:$CA$132,3,0)*AF135) -> 260400
B137: 満５６歳の年度 | Q137: 教諭 | Z137: =IF(Q137="","",VLOOKUP(Q137,$BY$128:$CA$132,2,0)) -> 第９号 | AF137: =IF(ISBLANK(Q137), "", 12) -> 12 | AL137: =IF(Q137="","",VLOOKUP(Q137,$BY$128:$CA$132,3,0)*AF137) -> 260400 | BA137: （１）合計 | BG137: =SUM( IFERROR(LARGE(AF129:AK140, 1), 0), IFERROR(LARGE(AF129:AK140, 2), 0), IFERROR(LARGE(AF129:AK140, 3), 0), IFERROR(LARGE(AF129:AK140, 4), 0), IFERROR(LARGE(AF129:AK140, 5), 0) ) -> 60 | BM137: 月
B139: 満５５歳の年度 | Q139: 教諭 | Z139: =IF(Q139="","",VLOOKUP(Q139,$BY$128:$CA$132,2,0)) -> 第９号 | AF139: =IF(ISBLANK(Q139), "", 12) -> 12 | AL139: =IF(Q139="","",VLOOKUP(Q139,$BY$128:$CA$132,3,0)*AF139) -> 260400 | BD139: =SUM( IFERROR(LARGE(AL129:AS140, 1), 0), IFERROR(LARGE(AL129:AS140, 2), 0), IFERROR(LARGE(AL129:AS140, 3), 0), IFERROR(LARGE(AL129:AS140, 4), 0), IFERROR(LARGE(AL129:AS140, 5), 0) ) -> 1690800 | BM139: 円
B142: （２）上記以外の者
B143: 年度 | Q143: 給料表 | Y143: 号俸 （級） | AF143: 区分 | AL143: 調整月数 | AR143: 調整額 | BY143: ↓（２）の給料表・号俸を入れると表示される
BY144: =Q145&Y145 ->  | BZ144: 行政８級 | CA144: 第４号 | CB144: 59550
B145: 満６０歳の年度 | AF145: =IF(OR(Q145="",Y145=""),"",VLOOKUP(BY144,$BZ$144:$CB$175,2,0)) ->  | AL145: =IF(ISBLANK(Q145), "", 12) ->  | AR145: =IF(OR(Q145="",Y145=""),"",VLOOKUP(BY144,$BZ$144:$CB$175,3,0)*AL145) ->  | BY145: =Q147&Y147 ->  | BZ145: 行政７級 | CA145: 第５号 | CB145: 54150
BY146: =Q149&Y149 ->  | BZ146: 行政６級 | CA146: 第６号 | CB146: 43350
B147: 満５９歳の年度 | AF147: =IF(OR(Q147="",Y147=""),"",VLOOKUP(BY145,$BZ$144:$CB$175,2,0)) ->  | AL147: =IF(ISBLANK(Q147), "", 12) ->  | AR147: =IF(OR(Q147="",Y147=""),"",VLOOKUP(BY145,$BZ$144:$CB$175,3,0)*AL147) ->  | BY147: =Q151&Y151 ->  | BZ147: 行政５級 | CA147: 第７号 | CB147: 32500
BY148: =Q153&Y153 ->  | BZ148: 行政４級 | CA148: 第８号 | CB148: 27100
B149: 満５８歳の年度 | AF149: =IF(OR(Q149="",Y149=""),"",VLOOKUP(BY146,$BZ$144:$CB$175,2,0)) ->  | AL149: =IF(ISBLANK(Q149), "", 12) ->  | AR149: =IF(OR(Q149="",Y149=""),"",VLOOKUP(BY146,$BZ$144:$CB$175,3,0)*AL149) ->  | BY149: =Q155&Y155 ->  | BZ149: 行政３級 | CA149: 第９号 | CB149: 21700
BY150: =B156&H156 ->  | BZ150: 行政２級 | CA150: 第１０号 | CB150: 0
B151: 満５７歳の年度 | AF151: =IF(OR(Q151="",Y151=""),"",VLOOKUP(BY147,$BZ$144:$CB$175,2,0)) ->  | AL151: =IF(ISBLANK(Q151), "", 12) ->  | AR151: =IF(OR(Q151="",Y151=""),"",VLOOKUP(BY147,$BZ$144:$CB$175,3,0)*AL151) ->  | BZ151: 行政１級 | CA151: 第１０号 | CB151: 0
BZ152: 研究５級 | CA152: 第４号 | CB152: 59550
B153: 満５６歳の年度 | AF153: =IF(OR(Q153="",Y153=""),"",VLOOKUP(BY148,$BZ$144:$CB$175,2,0)) ->  | AL153: =IF(ISBLANK(Q153), "", 12) ->  | AR153: =IF(OR(Q153="",Y153=""),"",VLOOKUP(BY148,$BZ$144:$CB$175,3,0)*AL153) ->  | BA153: （２）合計 | BG153: =SUM( IFERROR(LARGE(AL145:AQ156, 1), 0), IFERROR(LARGE(AL145:AQ156, 2), 0), IFERROR(LARGE(AL145:AQ156, 3), 0), IFERROR(LARGE(AL145:AQ156, 4), 0), IFERROR(LARGE(AL145:AQ156, 5), 0) ) -> 0 | BM153: 月 | BZ153: 研究４級 | CA153: 第６号 | CB153: 43350
BZ154: 研究３級 | CA154: 第８号 | CB154: 27100
B155: 満５５歳の年度 | AF155: =IF(OR(Q155="",Y155=""),"",VLOOKUP(BY149,$BZ$144:$CB$175,2,0)) ->  | AL155: =IF(ISBLANK(Q155), "", 12) ->  | AR155: =IF(OR(Q155="",Y155=""),"",VLOOKUP(BY149,$BZ$144:$CB$175,3,0)*AL155) ->  | BD155: =SUM( IFERROR(LARGE(AR145:AY156, 1), 0), IFERROR(LARGE(AR145:AY156, 2), 0), IFERROR(LARGE(AR145:AY156, 3), 0), IFERROR(LARGE(AR145:AY156, 4), 0), IFERROR(LARGE(AR145:AY156, 5), 0) ) -> 0 | BM155: 円 | BZ155: 研究２級 | CA155: 第９号 | CB155: 21700
BZ156: 研究１級 | CA156: 第１０号 | CB156: 0
BZ157: 医療（二）７級 | CA157: 第５号 | CB157: 54150
AF158: 調整額合計は | AW158: =IF(AX22<=4, BD139/2, BD139) + IF(AX22<=4, BD155/2, BD155) -> 1690800 | BJ158: 円 | BZ158: 医療（二）６級 | CA158: 第６号 | CB158: 43350
BZ159: 医療（二）５級 | CA159: 第８号 | CB159: 27100
AU160: （調整月数計 | BD160: =BG137+BG153 -> 60 | BH160: 月） | BZ160: 医療（二）４級 | CA160: 第９号 | CB160: 21700
BO161: # 使用例 | BZ161: 医療（二）３級 | CA161: 第９号 | CB161: 21700
BZ162: 医療（二）２級 | CA162: 第１０号 | CB162: 0
BZ163: 医療（二）１級 | CA163: 第１０号 | CB163: 0
BO164: print(result) # 出力: 50 | BZ164: 技能５級 | CA164: 第８号 | CB164: 27100
BZ165: 技能４級 | CA165: 第９号 | CB165: 21700
BO166: result = adjust_bd126(25, 100) # 25は範囲外なのでBD126の値100をそのまま返す | BZ166: 技能３級 | CA166: 第９号 | CB166: 21700
BO167: print(result) # 出力: 100 | BZ167: 技能２級 | CA167: 第１０号 | CB167: 0
BZ168: 技能１級 | CA168: 第１０号 | CB168: 0
BZ169: 医療（三）７級 | CA169: 第５号 | CB169: 54150
BZ170: 医療（三）６級 | CA170: 第６号 | CB170: 43350
BZ171: 医療（三）５級 | CA171: 第８号 | CB171: 27100
BZ172: 医療（三）４級 | CA172: 第９号 | CB172: 21700
BZ173: 医療（三）３級 | CA173: 第９号 | CB173: 21700
BZ174: 医療（三）２級 | CA174: 第１０号 | CB174: 0
BZ175: 医療（三）１級 | CA175: 第１０号 | CB175: 0

Sheet 印刷シート
B2: 退職手当計算内訳書 （試算） | K2: 氏名： | M2: =IF(入力シート!B10="","",入力シート!B10) -> 福 花子 | Q2: =TODAY() -> 2026-08-10 | V2: 現在 | AD2: =IF(入力シート!B14="自己都合","自己都合",IF(入力シート!B14="定年扱い","定年扱い")) -> 定年扱い
K3: 事由： | M3: =$AD$2&"退職" -> 定年扱い退職
B4: 給与等 | F4: 満60歳年度の給料月額 | O4: 退職時の給料月額
B5: 給料月額 | C5: 級号俸 | F5: =入力シート!B68 -> 教育（一）
F6: =IF(入力シート!U68="","",IF(F7=入力シート!AN73,入力シート!U73,入力シート!U68)) -> 4 | I6: 級 | J6: =IF(入力シート!AC68="","",IF(F7=入力シート!AN73,入力シート!AC73,入力シート!AC68)) -> 21 | M6: 号俸
C7: 給料 | F7: =入力シート!$B$77+入力シート!$B$103 -> 496800 | M7: 円 | O7: =入力シート!$B$81+入力シート!$B$107 -> 347800 | V7: 円
C8: 教職調整額 | F8: =入力シート!$U$77+入力シート!$AD$103 -> 3800 | M8: 円 | O8: =入力シート!$U$81+入力シート!$AD$107 -> 17390 | V8: 円
C9: 給料の調整額 | F9: =入力シート!AN77 -> 0 | M9: 円 | O9: =入力シート!AN81 -> 0 | V9: 円 | Y9: =K11*12+M11 -> 420 | Z9: =T11*12+V11 -> 432
B10: 計 | F10: =SUM(F7:L9) -> 500600 | M10: 円（Ａ） | O10: =SUM(O7:U9) -> 365190 | V10: 円（Ｂ）
B11: 勤続年数 | D11: 在職年数（ア） | F11: =入力シート!P20 -> 1991-04-01 | J11: から | K11: =入力シート!$AX$20 -> 35 | L11: 年 | M11: =入力シート!$BF$20 -> 0 | N11: 月 | O11: =入力シート!P20 -> 1991-04-01 | S11: から | T11: =入力シート!$AX$22 -> 36 | U11: 年 | V11: =入力シート!$BF$22 -> 0 | W11: 月 | Y11: =SUM(T13:T18) -> 1 | Z11: 除算年計
F12: =入力シート!P22 -> 2026-03-31 | J12: まで | O12: =入力シート!P24 -> 2027-03-31 | S12: まで | Y12: =ROUNDDOWN((Y15)/12,0) -> 0
D13: 除算年数（イ） | F13: =IF(AND(入力シート!$AW$30=0,入力シート!$BE$30=0),"",入力シート!AD33) -> 1994-03-01 | M13: から | Q13: =IF(F13="","","育休") -> 育休 | T13: =IF(Q13="","",入力シート!AW30) -> 0 | U13: 年 | V13: =IF(Q13="","",入力シート!BE30) -> 4.8 | W13: 月 | Y13: =MOD(Y15,12) -> 7.8
F14: =IF(AND(入力シート!$AW$30=0,入力シート!$BE$30=0),"",入力シート!AV34) -> 1995-03-31 | M14: まで | O14: （１）
F15: =IF(AND(入力シート!$AW$37=0,入力シート!$BE$37=0),"",入力シート!AD40) -> 2020-02-01 | M15: から | Q15: =IF(F15="","",入力シート!$P$36) -> 休職 | T15: =IF(Q15="","",入力シート!AW37) -> 0 | U15: 年 | V15: =IF(Q15="","",入力シート!BE37) -> 1 | W15: 月 | Y15: =SUM(V13:V18) -> 7.8 | Z15: 除算月計
F16: =IF(AND(入力シート!AW37,入力シート!BE37=0),"",入力シート!AV40) -> 2020-03-31 | M16: まで | O16: （２）
F17: さらに除く年月数 | Q17: =IF(F17="","","その他") -> その他 | T17: =IF(Q17="","",入力シート!P45) -> 1 | U17: 年 | V17: =IF(Q17="","",入力シート!W45) -> 2 | W17: 月
O18: （３） | Y18: =Y9-(Y13+(Y11+Y12)*12) -> 400.2 | AA18: =Z9-(Y13+(Y11+Y12)*12) -> 412.2
H19: 計 | T19: =+Y11+Y12 -> 1 | U19: 年 | V19: =Y13 -> 7.8 | W19: 月
D20: 合計（ウ）＝（ア）－（イ） | K20: =IF(Y20>0,Y20,0) -> 33 | L20: 年 | M20: =IF(Z20>0,Z20,0) -> 4.2 | N20: 月 | T20: =IF(AA20>0,AA20,0) -> 34 | U20: 年 | V20: =IF(AB20>0,AB20,0) -> 4.2 | W20: 月 | Y20: =ROUNDDOWN(Y18/12,0) -> 33 | Z20: =Y18-Y20*12 -> 4.2 | AA20: =ROUNDDOWN(AA18/12,0) -> 34 | AB20: =AA18-AA20*12 -> 4.2
B21: 支給率 | F21: =支給率シート!K6 -> 45.32355 | M21: （ロ） | O21: =支給率シート!K7 -> 46.83015 | V21: （イ） | AD21: 事由 | AF21: 年数 | AM21: 【参考】
F22: 勤続年数 | J22: =K20 -> 33 | M22: 年 | O22: 勤続年数 | S22: =T20 -> 34 | V22: 年 | AD22: =入力シート!B14 -> 定年扱い | AE22: =IF(AD22="自己都合",2,1) -> 1 | AF22: =V24 -> 0 | AG22: =IF(AE22=1,"",IF(AND(AE22=2,AF22>19),2,1)) ->  | AH22: =IF(AE22=2,"",IF(AND(AF22>=20,AF22<=35),6,IF(AF22>35,7,""))) -> 
B23: 調整額（ハ） | F23: =入力シート!AW158 -> 1690800 | T23: 円 | Z23: 1 | AA23: 3 | AB23: 2 | AG23: =IF(AE22=2,"",IF(AND(AE22=1,AF22<12),3,IF(AND(AE22=1,AF22>=11,AF22<25),4,5))) -> 3 | AI23: 1 | AJ23: 自己都合 | AK23: ～１９
Z24: 2 | AA24: 3 | AB24: 1 | AI24: 2 | AJ24: 自己都合 | AK24: ２０～
B25: 適用条項 | F25: 職員の退職手当に関する条例第 | O25: =VLOOKUP(AG$25,Z$23:AB$27,2) -> 3 | P25: 条 | Q25: 第 | R25: =VLOOKUP($AG$25,$Z$23:$AB$27,3) -> 1 | S25: 項 | Z25: 3 | AA25: 3 | AB25: 1 | AG25: =SUM(AG22:AG24) -> 3 | AI25: 3 | AJ25: 定年 | AK25: ～１１
F26: 昭和 | I26: =IFERROR(VLOOKUP($AH$22,$Z$28:$AB$29,2),"") ->  | J26: 年条例第 | L26: =IFERROR(VLOOKUP($AH$22,$Z$28:$AC$29,3),"") ->  | M26: 号附則第 | P26: =IFERROR(VLOOKUP($AH$22,$Z$28:$AC$29,4),"") ->  | R26: 項 | Z26: 4 | AA26: 4 | AB26: 1 | AI26: 4 | AJ26: 定年 | AK26: １１～２４
B27: 退職手当の計算式 | F27: （Ａ）×（ロ）＋（Ｂ）× {（イ）－（ロ）｝＋ 調整額（ハ） | Z27: 5 | AA27: 5 | AB27: 1 | AI27: 5 | AJ27: 定年 | AK27: ２５～
F28: =F10 -> 500600 | H28: × | I28: =F21 -> 45.32355 | K28: ＋ | L28: =O10 -> 365190 | N28: ×（ | O28: =O21 -> 46.83015 | Q28: － | S28: =F21 -> 45.32355 | U28: ）＋ | V28: =F23 -> 1690800 | Z28: 6 | AA28: 本則 | AB28: 附則 | AC28: 21 | AI28: 6 | AJ28: 定年等 | AK28: ２０～３５
B29: 退職手当決定額 | F29: =INT((F10*F21)+O10*(O21-F21)+F23) -> 24929964 | T29: 円 | Z29: 7 | AA29: 本則 | AB29: 附則 | AC29: 23 | AI29: 7 | AJ29: 定年等 | AK29: ３６～
B31: 控除額 | C31: 徴 | D31: ①所得税 | J31: 円 | K31: ※ 退職時のおおよその金額です。
C32: 収 | D32: ②市町村民税 | J32: 円 | L32: 正確な退職手当額は経過措置や昇給等を考慮した上で
C33: 税 | D33: ③県民税 | J33: 円 | L33: 決定されますので、参考程度にお考えください。
C34: 額 | D34: 計 | J34: 円 | L34: また、この退職手当計算内訳書は今後の退職手当額 | Z34: =IFERROR(IF(支給率シート!K6="","",支給率シート!K6),0) -> 45.32355 | AA34: 満60
C35: ④給与に係る住民税 | L35: を保障するものではありません。 | Z35: =IFERROR(IF(支給率シート!K7="","",支給率シート!K7),0) -> 46.83015 | AA35: 定年
C36: 一括徴収税額 | J36: 円 | L36: （今後の条例改正等により実際の退職手当額が試算額
C37: ⑤共済組合貸付償還金 | J37: 円 | L37: を下回ることがあります。）
J38: 円 | L38: なお、実際は、左記①～⑤を控除した残額が支給額と
J39: 円 | L39: なります。
C40: =IF(OR(G40=0,G40=""),"","その他(法務局供託金)") ->  | J40: 円
C41: 合計 | J41: 円 | L41: 入力シートに入力した内容に誤りがある場合は、正しく
B42: 現金支給額 | J42: 円 | L42: 計算されません。

Sheet 支給率シート (hidden)
A1: 支給率算定シート
M2: 自己都合
D5: ※１勤続年数 | J5: 支給率
E6: 満60歳年度 | F6: ='印刷シート '!K20 -> 33 | J6: 満60歳年度 | K6: =IF(F9=1,VLOOKUP($F$6,'H30.4.1'!A5:C50,3,FALSE),VLOOKUP($F$6,'H30.4.1'!A5:C50,2,FALSE)) -> 45.32355
E7: 退職時 | F7: ='印刷シート '!T20 -> 34 | J7: 退職時 | K7: =IF(F9=1,VLOOKUP($F$7,'H30.4.1'!A6:C51,3,FALSE),VLOOKUP($F$7,'H30.4.1'!A6:C51,2,FALSE)) -> 46.83015
D8: 退職区分
D9: =入力シート!B14 -> 定年扱い | F9: =IF(D9="自己都合",1,2) -> 2
D13: ※１） 育児休業、休職等の期間を除いた年数
D15: １年未満の端数は切り捨て 例）３５年６月 →３５年
A24: １．H２７.３.３１に退職した場合
D26: 年齢(H26.3.31) | F26: 勤続年数 | H26: ※給料月額 | J26: ※２給料月額 | M26: =MAX(H27:H31) ->  | N26: =IF(入力シート!#REF!=0,1251000,入力シート!#REF!) -> 
D27: =E6+1 ->  | F27: =F6+1 -> 34 | H27: =H6 -> 0 | J27: =#REF! ->  | L27: 現条例 | M27: =IF(F31=1,VLOOKUP(F27,'H30.4.1'!A6:C73,3,FALSE),VLOOKUP(F27,'H30.4.1'!A6:C73,2,FALSE)) ->  | N27: =IFERROR(SUM(M26*M27)+N26,0) -> 0
D28: ＋１歳 | F28: ＋１年 | H28: 昇給は考慮しない | M28: =MAX(J27:J31) -> 
L29: 旧条例 | M29: =IF(F6<=8,0,IF(F31=1,VLOOKUP(#REF!,A6:C72,3,FALSE),VLOOKUP(#REF!,A6:C72,2,FALSE))) ->  | N29: =SUM(M28*M29) -> 
D30: 退職区分 | H30: 加算後の給料月額 | J30: 退職手当上の給料月額
D31: =IF(入力シート!#REF!="",入力シート!B14,入力シート!#REF!) ->  | F31: =IF(D31="自己都合",1,2) ->  | H31: =IF(F27>24,H27*VLOOKUP(D27,#REF!,2,FALSE)) ->  | J31: =IF(D27=60,J27,IF(F27-7>24,J27*VLOOKUP(D27-7,#REF!,2,FALSE))) -> 
D34: 給料月額 | F34: 支給割合 | H34: 調整額 | J34: 退職手当額
D35: =IF(N27>N29,M26,M28) ->  | E35: × | F35: =IF(N27>N29,M27,M29) ->  | G35: ＋ | H35: =IF(N29>N27,0,IF(入力シート!#REF!=0,1251000,入力シート!#REF!)) ->  | I35: ＝ | J35: =IFERROR(INT(D35*F35)+H35,"") -> 
A39: ３．おおよその差額
H41: =J35-#REF! ->  | I41: 円

Sheet H30.4.1 (hidden)
A1: 支給率
A2: 年 数 | B2: 退職事由
B3: 定年 | C3: 自己都合
A5: 0 | C5: 0
A6: 1 | B6: 0.837 | C6: 0.5022
A7: 2 | B7: 1.674 | C7: 1.0044
A8: 3 | B8: 2.511 | C8: 1.5066
A9: 4 | B9: 3.348 | C9: 2.0088
A10: 5 | B10: 4.185 | C10: 2.511
A11: 6 | B11: 5.022 | C11: 3.0132
A12: 7 | B12: 5.859 | C12: 3.5154
A13: 8 | B13: 6.696 | C13: 4.0176
A14: 9 | B14: 7.533 | C14: 4.5198
A15: 10 | B15: 8.37 | C15: 5.022
A16: 11 | B16: 11.613375 | C16: 7.43256
A17: 12 | B17: 12.76425 | C17: 8.16912
A18: 13 | B18: 13.915125 | C18: 8.90568
A19: 14 | B19: 15.066 | C19: 9.64224
A20: 15 | B20: 16.216875 | C20: 10.3788
A21: 16 | B21: 17.890875 | C21: 12.88143
A22: 17 | B22: 19.564875 | C22: 14.08671
A23: 18 | B23: 21.238875 | C23: 15.29199
A24: 19 | B24: 22.912875 | C24: 16.49727
A25: 20 | B25: 24.586875 | C25: 19.6695
A26: 21 | B26: 26.260875 | C26: 21.3435
A27: 22 | B27: 27.934875 | C27: 23.0175
A28: 23 | B28: 29.608875 | C28: 24.6915
A29: 24 | B29: 31.282875 | C29: 26.3655
A30: 25 | B30: 33.27075 | C30: 28.0395
A31: 26 | B31: 34.77735 | C31: 29.3787
A32: 27 | B32: 36.28395 | C32: 30.7179
A33: 28 | B33: 37.79055 | C33: 32.0571
A34: 29 | B34: 39.29715 | C34: 33.3963
A35: 30 | B35: 40.80375 | C35: 34.7355
A36: 31 | B36: 42.31035 | C36: 35.7399
A37: 32 | B37: 43.81695 | C37: 36.7443
A38: 33 | B38: 45.32355 | C38: 37.7487
A39: 34 | B39: 46.83015 | C39: 38.7531
A40: 35 | B40: 47.709 | C40: 39.7575
A41: 36 | B41: 47.709 | C41: 40.7619
A42: 37 | B42: 47.709 | C42: 41.7663
A43: 38 | B43: 47.709 | C43: 42.7707
A44: 39 | B44: 47.709 | C44: 43.7751
A45: 40 | B45: 47.709 | C45: 44.7795
A46: 41 | B46: 47.709 | C46: 45.7839
A47: 42 | B47: 47.709 | C47: 46.7883
A48: 43 | B48: 47.709 | C48: 47.709
A49: 44 | B49: 47.709 | C49: 47.709
A50: 45 | B50: 47.709 | C50: 47.709

Sheet 【参考】調整額区分表
A1: 退職手当の調整額に関する区分表
A3: イ １９年３月３１日までの適用区分
A4: 区分 | B4: 第１号 | C4: 第２号 | D4: 第３号 | E4: 第４号 | F4: 第５号 | G4: 第６号 | H4: 第７号 | I4: 第８号 | J4: 第９号 | K4: 第１０号
A5: 調整月額 | B5: 78750 | C5: 70400 | D5: 65000 | E5: 59550 | F5: 54150 | G5: 43350 | H5: 32500 | I5: 27100 | J5: 21700 | K5: 0
A6: 行政職 | D6: １１級 期20% | E6: １０級 期20% | F6: ９級 期15% | G6: ８級 期15% | H6: ７級 期10% | I6: ６級 期10% | J6: ５級・４級 期5% | K6: ３級・２級・１級
A7: 教育職(二) | E7: ４級 期20% | F7: ４級 管16%・管14% 期15% | G7: ４級 期15% | H7: ３級 期10% ２級期10%のうち注８の者 | I7: ２級 期10% | J7: ２級・１級 期5% | K7: ２級・１級
A8: 教育職(三) | E8: ４級 期20% | F8: ４級 管16%・管14% 期15% | G8: ４級 期15% | H8: ３級 期10% ２級期10%のうち注８の者 | I8: ２級 期10% | J8: ２級 期5% | K8: ２級・１級
A9: 研究職 | D9: ５級 管25% 期20% | E9: ５級 期20% | F9: ４級 管18% 期15% | G9: ４級 期15% ３級のうち注４の職 | H9: ３級のうち注５の職 | I9: ３級 期10% | J9: ２級 期5% | K9: ２級・１級
A10: 医療職(二) 医療職(三) | F10: ７級 期15% | G10: ６級 期15% | H10: ５級のうち注６の職 | I10: ５級 期10% | J10: ４級 期5% ３級 期5% | K10: 3級・2級・1級
A11: 技能職 | I11: ５級 期10% | J11: ４級 期5% ３級 期5% ２級 期5% | K11: ４級・３級・ ２級・１級
A13: ロ １９年４月１日から21年３月31日までの適用区分
A14: 区分 | B14: 第１号 | C14: 第２号 | D14: 第３号 | E14: 第４号 | F14: 第５号 | G14: 第６号 | H14: 第７号 | I14: 第８号 | J14: 第９号 | K14: 第１０号
A15: 調整月額 | B15: 78750 | C15: 70400 | D15: 65000 | E15: 59550 | F15: 54150 | G15: 43350 | H15: 32500 | I15: 27100 | J15: 21700 | K15: 0
A16: 行政職 | C16: １０級 期20% | D16: ９級 期20% | E16: ８級 期20% | F16: ７級 期15% | G16: ６級 期15% | H16: ５級 期10% | I16: ４級 期10% | J16: ３級 期5% | K16: ２級・１級
A17: 教育職(二) | E17: ４級 期20% | F17: ４級 管６種 期15% | G17: ４級 期15% | H17: ３級 期10% ２級期10%のうち注８の者 | I17: ２級 期10% | J17: ２級・１級 期5% | K17: ２級・１級
A18: 教育職(三) | E18: ４級 期20% | F18: ４級 管６種 期15% | G18: ４級 期15% | H18: ３級 期10% ２級期10%のうち注８の者 | I18: ２級 期10% | J18: ２級 期5% | K18: ２級・１級
A19: 研究職 | D19: ５級 管１種 期20% | E19: ５級 期20% | F19: ４級 管４種 期15% | G19: ４級 期15% ３級のうち注４の職 | H19: ３級のうち注５の職 | I19: ３級 期10% | J19: ２級 期5% | K19: ２級・１級
A20: 医療職(二) 医療職(三) | F20: ７級 期15% | G20: ６級 期15% | H20: ５級のうち注７の職 | I20: ５級 期10% | J20: ４級 期5% ３級 期5% | K20: 3級・2級・1級
A21: 技能職 | I21: ４級 期10% | J21: ３級 期5% ２級 期5% | K21: ３級・２級・１級
A23: ハ ２１年４月１日からの適用区分（技能職については平成２７年３月３１日までの適用区分）
A24: 区分 | B24: 第１号 | C24: 第２号 | D24: 第３号 | E24: 第４号 | F24: 第５号 | G24: 第６号 | H24: 第７号 | I24: 第８号 | J24: 第９号 | K24: 第１０号
A25: 調整月額 | B25: 78750 | C25: 70400 | D25: 65000 | E25: 59550 | F25: 54150 | G25: 43350 | H25: 32500 | I25: 27100 | J25: 21700 | K25: 0
A26: 行政職 | C26: １０級 期20% | D26: ９級 期20% | E26: ８級 期20% | F26: ７級 期15% | G26: ６級 期15% | H26: ５級 期10% | I26: ４級 期10% | J26: ３級 期5% | K26: ２級・１級
A27: 教育職(一) | E27: ４級 期20% | F27: ４級 管６種 期15% | G27: ４級期15% ３級管６種 | H27: ３級 期10% ２級期10%のうち注８の者 特２級のうち特２級在職４年以上又は注８の者 | I27: ２級期10% 特２級 | J27: ２級・１級 期5% | K27: ２級・１級
A28: 教育職(二) | E28: ４級 期20% | F28: ４級 管６種 期15% | G28: ４級期15% ３級管６種 | H28: ３級 期10% ２級期10%のうち注８の者 特２級のうち特２級在職４年以上又は注８の者 | I28: ２級期10% 特２級 | J28: ２級 期5% | K28: ２級・１級
A29: 研究職 | D29: ５級 管１種 期20% | E29: ５級 期20% | F29: ４級 管４種 期15% | G29: ４級 期15% ３級のうち注４の職 | H29: ３級のうち注５の職 | I29: ３級 期10% | J29: ２級 期5% | K29: ２級・１級
A30: 医療職(二) 医療職(三) | F30: ７級 期15% | G30: ６級 期15% | H30: ５級のうち注７の職 | I30: ５級 期10% | J30: ４級 期5% ３級 期5% | K30: 3級・2級・1級
A31: 技能職 | I31: ４級 期10% | J31: ３級 期5% ２級 期5% | K31: ３級・２級・１級
A33: ニ ２７年４月１日からの適用区分
A34: 区分 | B34: 第１号 | C34: 第２号 | D34: 第３号 | E34: 第４号 | F34: 第５号 | G34: 第６号 | H34: 第７号 | I34: 第８号 | J34: 第９号 | K34: 第１０号
A35: 調整月額 | B35: 78750 | C35: 70400 | D35: 65000 | E35: 59550 | F35: 54150 | G35: 43350 | H35: 32500 | I35: 27100 | J35: 21700 | K35: 0
A36: 技能職 | I36: ５級 期10% | J36: ４級 期5% ３級 期5% | K36: ４級・３級・ ２級・１級
A38: 注１ 期 ％ ： 期末手当等の役職段階別加算割合 | G38: 注８ 勤続期間が博士課程修了にあっては30年以上，修士課程修了に
A39: 注２ 管 ％ ： 管理職手当の支給割合 | G39: あっては33年以上，大学卒にあっては35年以上，短大卒にあっては
A40: 注３ 管 種 ： 管理職手当の支給額により区分 | G40: 37年以上，高校卒にあっては39年以上であった者
A41: 注４ 技術副参事，総括研究員
A42: 注５ 技術補佐，技術次長又は上席主任研究員
A43: 注６ 技術補佐，技術次長又は上席技術主幹
A44: 注７ 技術補佐，技術次長

Sheet 給料表計算シート (hidden)
A1: １ 現在の給料表
E3: 給料月額 | F3: 調整額 | G3: 給料表コード
A4: 行政 | B4: =IF(入力シート!$B$68="行政",入力シート!$B$68,"") ->  | C4: =IF(B4="","",入力シート!$U$68) ->  | D4: =IF(B4="","",入力シート!$AC$68) ->  | E4: =IF(B4="","",IF($E$14=DATE(2026,3,31),VLOOKUP($D$16,'R7給料表'!$B$2:$C$4268,2,FALSE),IF($E$14=DATE(2025,3,31),VLOOKUP($D$16,'R6給料表'!$B$2:$C$4268,2,FALSE),""))) ->  | F4: =IF(B4="","",IF($E$14=DATE(2026,3,31),VLOOKUP($D$17,'R7給料表'!$F$2:$G$50,2,FALSE),IF($E$14=DATE(2025,3,31),VLOOKUP($D$17,'R6給料表'!$F$2:$G$50,2,FALSE),""))) ->  | G4: =IF(B4="","",1) -> 
A5: 教育（一） | B5: =IF(入力シート!$B$68="教育（一）",入力シート!$B$68,"") -> 教育（一） | C5: =IF(B5="","",入力シート!$U$68) -> 4 | D5: =IF(B5="","",入力シート!$AC$68) -> 21 | E5: =IF(B5="","",IF($E$14=DATE(2026,3,31),VLOOKUP($D$16,'R7給料表'!$B$2:$C$4268,2,FALSE),IF($E$14=DATE(2025,3,31),VLOOKUP($D$16,'R6給料表'!$B$2:$C$4268,2,FALSE),""))) -> 496800 | F5: =IF(B5="","",IF($E$14=DATE(2026,3,31),VLOOKUP($D$17,'R7給料表'!$F$2:$G$50,2,FALSE),IF($E$14=DATE(2025,3,31),VLOOKUP($D$17,'R6給料表'!$F$2:$G$50,2,FALSE),""))) -> 13300 | G5: =IF(B5="","",4) -> 4
A6: 教育（二） | B6: =IF(入力シート!$B$68="教育（二）",入力シート!$B$68,"") ->  | C6: =IF(B6="","",入力シート!$U$68) ->  | D6: =IF(B6="","",入力シート!$AC$68) ->  | E6: =IF(B6="","",IF($E$14=DATE(2026,3,31),VLOOKUP($D$16,'R7給料表'!$B$2:$C$4268,2,FALSE),IF($E$14=DATE(2025,3,31),VLOOKUP($D$16,'R6給料表'!$B$2:$C$4268,2,FALSE),""))) ->  | F6: =IF(B6="","",IF($E$14=DATE(2026,3,31),VLOOKUP($D$17,'R7給料表'!$F$2:$G$50,2,FALSE),IF($E$14=DATE(2025,3,31),VLOOKUP($D$17,'R6給料表'!$F$2:$G$50,2,FALSE),""))) ->  | G6: =IF(B6="","",5) -> 
A7: 研究 | B7: =IF(入力シート!$B$68="研究",入力シート!$B$68,"") ->  | C7: =IF(B7="","",入力シート!$U$68) ->  | D7: =IF(B7="","",入力シート!$AC$68) ->  | E7: =IF(B7="","",IF($E$14=DATE(2026,3,31),VLOOKUP($D$16,'R7給料表'!$B$2:$C$4268,2,FALSE),IF($E$14=DATE(2025,3,31),VLOOKUP($D$16,'R6給料表'!$B$2:$C$4268,2,FALSE),""))) ->  | F7: =IF(B7="","",IF($E$14=DATE(2026,3,31),VLOOKUP($D$17,'R7給料表'!$F$2:$G$39,2,FALSE),IF($E$14=DATE(2025,3,31),VLOOKUP($D$17,'R6給料表'!$F$2:$G$39,2,FALSE),""))) ->  | G7: =IF(B7="","",6) -> 
A8: 技能 | B8: =IF(入力シート!$B$68="技能",入力シート!$B$68,"") ->  | C8: =IF(B8="","",入力シート!$U$68) ->  | D8: =IF(B8="","",入力シート!$AC$68) ->  | E8: =IF(B8="","",IF($E$14=DATE(2026,3,31),VLOOKUP($D$16,'R7給料表'!$B$2:$C$4268,2,FALSE),IF($E$14=DATE(2025,3,31),VLOOKUP($D$16,'R6給料表'!$B$2:$C$4268,2,FALSE),""))) ->  | F8: =IF(B8="","",IF($E$14=DATE(2026,3,31),VLOOKUP($D$17,'R7給料表'!$F$2:$G$39,2,FALSE),IF($E$14=DATE(2025,3,31),VLOOKUP($D$17,'R6給料表'!$F$2:$G$39,2,FALSE),""))) ->  | G8: =IF(B8="","",10) -> 
A9: 医療（二） | B9: =IF(入力シート!$B$68="医療（二）",入力シート!$B$68,"") ->  | C9: =IF(B9="","",入力シート!$U$68) ->  | D9: =IF(B9="","",入力シート!$AC$68) ->  | E9: =IF(B9="","",IF($E$14=DATE(2026,3,31),VLOOKUP($D$16,'R7給料表'!$B$2:$C$4268,2,FALSE),IF($E$14=DATE(2025,3,31),VLOOKUP($D$16,'R6給料表'!$B$2:$C$4268,2,FALSE),""))) ->  | F9: =IF(B9="","",IF($E$14=DATE(2026,3,31),VLOOKUP($D$17,'R7給料表'!$F$2:$G$39,2,FALSE),IF($E$14=DATE(2025,3,31),VLOOKUP($D$17,'R6給料表'!$F$2:$G$39,2,FALSE),""))) ->  | G9: =IF(B9="","",8) -> 
A10: 医療（三） | B10: =IF(入力シート!$B$68="医療（三）",入力シート!$B$68,"") ->  | C10: =IF(B10="","",入力シート!$U$68) ->  | D10: =IF(B10="","",入力シート!$AC$68) ->  | E10: =IF(B10="","",IF($E$14=DATE(2026,3,31),VLOOKUP($D$16,'R7給料表'!$B$2:$C$4268,2,FALSE),IF($E$14=DATE(2025,3,31),VLOOKUP($D$16,'R6給料表'!$B$2:$C$4268,2,FALSE),""))) ->  | F10: =IF(B10="","",IF($E$14=DATE(2026,3,31),VLOOKUP($D$17,'R7給料表'!$F$2:$G$39,2,FALSE),IF($E$14=DATE(2025,3,31),VLOOKUP($D$17,'R6給料表'!$F$2:$G$39,2,FALSE),""))) ->  | G10: =IF(B10="","",9) -> 
B12: 給料月額 | E12: =MAX(E4:E10) -> 496800 | F12: =MAX(F4:F10) -> 13300
B13: 給与表コード | C13: 級 | D13: 号俸 | E13: 満60歳年度末年月日
B14: =SUM(G4:G10) -> 4 | C14: =SUM(C4:C10) -> 4 | D14: =SUM(D4:D10) -> 21 | E14: =入力シート!P22 -> 2026-03-31
A16: 給料表 | B16: =TEXT(B14,"0")&TEXT(C14,"00")&TEXT(D14,"000") -> 404021 | D16: =B16*1 -> 404021
A17: 調整額 | B17: =TEXT(B14,"0")&TEXT(C14,"00") -> 404 | D17: =B17*1 -> 404
E18: 給料月額 | F18: 調整額 | G18: 給料表コード
A19: 技能 H27 | B19: =IF(OR(入力シート!U73="",入力シート!AC73=""),"","技能") ->  | C19: =IF(B19="","",入力シート!$U$73) ->  | D19: =IF(B19="","",入力シート!$AC$73) ->  | E19: =IF(B19="","",VLOOKUP($D$25,'R7給料表'!B:D,3,0)) ->  | G19: =IF(B19="","",10) -> 
B21: 給料月額 | E21: =IF(E19="","",E19) ->  | F21: =MAX(F19:F19) -> 0
B22: 給与表コード | C22: 級 | D22: 号俸
B23: =G19 ->  | C23: =SUM(C19:C19) -> 0 | D23: =SUM(D19:D19) -> 0
A25: 給料表 | B25: =TEXT(B23,"0")&TEXT(C23,"00")&TEXT(D23,"000") -> 00000 | D25: =B25*1 -> 0

Sheet R7給料表 (hidden)
A1: 2025-04-01 | B1: 表級号 | C1: 金額 | E1: 調整額 | F1: 表級 | G1: 金額
A2: 給料表 | B2: 101001 | C2: 197400 | E2: 基本額表 | F2: 101 | G2: 6700
B3: 101002 | C3: 198500 | F3: 102 | G3: 8600
B4: 101003 | C4: 199700 | F4: 103 | G4: 9800
B5: 101004 | C5: 200800 | F5: 104 | G5: 10500
B6: 101005 | C6: 201900 | F6: 105 | G6: 10800
B7: 101006 | C7: 203600 | F7: 106 | G7: 11400
B8: 101007 | C8: 205300 | F8: 107 | G8: 12300
B9: 101008 | C9: 206900 | F9: 108 | G9: 13000
B10: 101009 | C10: 208400 | F10: 109 | G10: 14700
B11: 101010 | C11: 210100 | F11: 110 | G11: 16300 | H11: 行政職
B12: 101011 | C12: 211700 | F12: 401 | G12: 9100
B13: 101012 | C13: 213300 | F13: 402 | G13: 11300
B14: 101013 | C14: 214800 | F14: 425 | G14: 11700
B15: 101014 | C15: 216600 | F15: 403 | G15: 12400
B16: 101015 | C16: 218300 | F16: 404 | G16: 13300 | H16: 教育職（１）
B17: 101016 | C17: 220000 | F17: 501 | G17: 8600
B18: 101017 | C18: 221100 | F18: 502 | G18: 11100
B19: 101018 | C19: 222700 | F19: 525 | G19: 11400
B20: 101019 | C20: 224300 | F20: 503 | G20: 12000
B21: 101020 | C21: 225800 | F21: 504 | G21: 12900 | H21: 教育職（２）
B22: 101021 | C22: 227300 | F22: 601 | G22: 8200
B23: 101022 | C23: 229000 | F23: 602 | G23: 9500
B24: 101023 | C24: 230600 | F24: 603 | G24: 11000
B25: 101024 | C25: 232200 | F25: 604 | G25: 11900
B26: 101025 | C26: 233800 | F26: 605 | G26: 14800 | H26: 研究職
B27: 101026 | C27: 235500 | F27: 801 | G27: 6300
B28: 101027 | C28: 236800 | F28: 802 | G28: 8200
B29: 101028 | C29: 238100 | F29: 803 | G29: 9300
B30: 101029 | C30: 239400 | F30: 804 | G30: 9800
B31: 101030 | C31: 240500 | F31: 805 | G31: 10700
B32: 101031 | C32: 241700 | F32: 806 | G32: 11400
B33: 101032 | C33: 242800 | F33: 807 | G33: 12300 | H33: 医療職（２）
B34: 101033 | C34: 243900 | F34: 901 | G34: 8200
B35: 101034 | C35: 244800 | F35: 902 | G35: 9500
B36: 101035 | C36: 245800 | F36: 903 | G36: 9800
B37: 101036 | C37: 246900 | F37: 904 | G37: 10200
B38: 101037 | C38: 247900 | F38: 905 | G38: 10600
B39: 101038 | C39: 248800 | F39: 906 | G39: 11800 | H39: 医療職（３）
B40: 101039 | C40: 249700
B41: 101040 | C41: 250500
B42: 101041 | C42: 251200
B43: 101042 | C43: 252000
B44: 101043 | C44: 252600
B45: 101044 | C45: 253200
B46: 101045 | C46: 253900
B47: 101046 | C47: 254500
B48: 101047 | C48: 255100
B49: 101048 | C49: 255700
B50: 101049 | C50: 256100
B51: 101050 | C51: 256700
B52: 101051 | C52: 257300
B53: 101052 | C53: 257800
B54: 101053 | C54: 258300
B55: 101054 | C55: 258700
B56: 101055 | C56: 259000
B57: 101056 | C57: 259400
B58: 101057 | C58: 259600
B59: 101058 | C59: 259900
B60: 101059 | C60: 260200
B61: 101060 | C61: 260500
B62: 101061 | C62: 260800
B63: 101062 | C63: 261100
B64: 101063 | C64: 261400
B65: 101064 | C65: 261700
B66: 101065 | C66: 262000
B67: 101066 | C67: 262300
B68: 101067 | C68: 262600
B69: 101068 | C69: 262900
B70: 101069 | C70: 263200
B71: 101070 | C71: 263500
B72: 101071 | C72: 263900
B73: 101072 | C73: 264200
B74: 101073 | C74: 264500
B75: 101074 | C75: 264800
B76: 101075 | C76: 265100
B77: 101076 | C77: 265400
B78: 101077 | C78: 265700
B79: 101078 | C79: 266000
B80: 101079 | C80: 266300
B81: 101080 | C81: 266700
B82: 101081 | C82: 267000
B83: 101082 | C83: 267100
B84: 101083 | C84: 267400
B85: 101084 | C85: 267800
B86: 101085 | C86: 268100
B87: 101086 | C87: 268400
B88: 101087 | C88: 268700
B89: 101088 | C89: 269000
B90: 101089 | C90: 269300
B91: 101090 | C91: 269700
B92: 101091 | C92: 270000
B93: 101092 | C93: 270300
B94: 101093 | C94: 270700
B95: 102001 | C95: 243900
B96: 102002 | C96: 245300
B97: 102003 | C97: 246600
B98: 102004 | C98: 248100
B99: 102005 | C99: 249500
B100: 102006 | C100: 250900
B101: 102007 | C101: 252300
B102: 102008 | C102: 253700
B103: 102009 | C103: 255100
B104: 102010 | C104: 256300
B105: 102011 | C105: 257600
B106: 102012 | C106: 259000
B107: 102013 | C107: 260200
B108: 102014 | C108: 261400
B109: 102015 | C109: 262600
B110: 102016 | C110: 263800
B111: 102017 | C111: 265000
B112: 102018 | C112: 266100
B113: 102019 | C113: 267200
B114: 102020 | C114: 268300
B115: 102021 | C115: 269200
B116: 102022 | C116: 270200
B117: 102023 | C117: 271200
B118: 102024 | C118: 272200
B119: 102025 | C119: 273300
B120: 102026 | C120: 274100
B121: 102027 | C121: 274800
B122: 102028 | C122: 275700
B123: 102029 | C123: 276600
B124: 102030 | C124: 277400
B125: 102031 | C125: 278200
B126: 102032 | C126: 278900
B127: 102033 | C127: 279600
B128: 102034 | C128: 280400
B129: 102035 | C129: 281200
B130: 102036 | C130: 281800
B131: 102037 | C131: 282500
B132: 102038 | C132: 283300
B133: 102039 | C133: 284100
B134: 102040 | C134: 284800
B135: 102041 | C135: 285500
B136: 102042 | C136: 286200
B137: 102043 | C137: 286900
B138: 102044 | C138: 287600
B139: 102045 | C139: 288400
B140: 102046 | C140: 288900
B141: 102047 | C141: 289600
B142: 102048 | C142: 290200
B143: 102049 | C143: 291100
B144: 102050 | C144: 291400
B145: 102051 | C145: 292200
B146: 102052 | C146: 292900
B147: 102053 | C147: 293400
B148: 102054 | C148: 294000
B149: 102055 | C149: 294600
B150: 102056 | C150: 295300
B151: 102057 | C151: 295900
B152: 102058 | C152: 296600
B153: 102059 | C153: 297200
B154: 102060 | C154: 297900
B155: 102061 | C155: 298500
B156: 102062 | C156: 299100
B157: 102063 | C157: 299600
B158: 102064 | C158: 300100
B159: 102065 | C159: 300600
B160: 102066 | C160: 301200
B161: 102067 | C161: 301700
B162: 102068 | C162: 302300
B163: 102069 | C163: 302700
B164: 102070 | C164: 303200
B165: 102071 | C165: 303600
B166: 102072 | C166: 304300
B167: 102073 | C167: 304900
B168: 102074 | C168: 305200
B169: 102075 | C169: 305500
B170: 102076 | C170: 305800
B171: 102077 | C171: 305900
B172: 102078 | C172: 306300
B173: 102079 | C173: 306500
B174: 102080 | C174: 306800
B175: 102081 | C175: 307000
B176: 102082 | C176: 307200
B177: 102083 | C177: 307500
B178: 102084 | C178: 307700
B179: 102085 | C179: 308000
B180: 102086 | C180: 308300
B181: 102087 | C181: 308600
B182: 102088 | C182: 308900
B183: 102089 | C183: 309200
B184: 102090 | C184: 309500
B185: 102091 | C185: 309800
B186: 102092 | C186: 310100
B187: 102093 | C187: 310200
B188: 102094 | C188: 310400
B189: 102095 | C189: 310800
B190: 102096 | C190: 311200
B191: 102097 | C191: 311400
B192: 102098 | C192: 311700
B193: 102099 | C193: 312000
B194: 102100 | C194: 312400
B195: 102101 | C195: 312600
B196: 102102 | C196: 312900
B197: 102103 | C197: 313200
B198: 102104 | C198: 313500
B199: 102105 | C199: 313700
B200: 102106 | C200: 314000
... 4052 more rows

Sheet R6給料表 (hidden)
A1: 2024-04-01 | B1: 表級号 | C1: 金額 | E1: 調整額 | F1: 表級 | G1: 金額
A2: 給料表 | B2: 101001 | C2: 185000 | E2: 基本額表 | F2: 101 | G2: 6700
B3: 101002 | C3: 186100 | F3: 102 | G3: 8600
B4: 101003 | C4: 187300 | F4: 103 | G4: 9800
B5: 101004 | C5: 188400 | F5: 104 | G5: 10500
B6: 101005 | C6: 189500 | F6: 105 | G6: 10800
B7: 101006 | C7: 191200 | F7: 106 | G7: 11400
B8: 101007 | C8: 192900 | F8: 107 | G8: 12300
B9: 101008 | C9: 194500 | F9: 108 | G9: 13000
B10: 101009 | C10: 196100 | F10: 109 | G10: 14700
B11: 101010 | C11: 197800 | F11: 110 | G11: 16300 | H11: 行政職
B12: 101011 | C12: 199400 | F12: 401 | G12: 9100
B13: 101012 | C13: 201000 | F13: 402 | G13: 11300
B14: 101013 | C14: 202600 | F14: 425 | G14: 11700
B15: 101014 | C15: 204400 | F15: 403 | G15: 12400
B16: 101015 | C16: 206100 | F16: 404 | G16: 13300 | H16: 教育職（１）
B17: 101016 | C17: 207800 | F17: 501 | G17: 8600
B18: 101017 | C18: 209100 | F18: 502 | G18: 11100
B19: 101018 | C19: 210700 | F19: 525 | G19: 11400
B20: 101019 | C20: 212300 | F20: 503 | G20: 12000
B21: 101020 | C21: 213800 | F21: 504 | G21: 12900 | H21: 教育職（２）
B22: 101021 | C22: 215300 | F22: 601 | G22: 8200
B23: 101022 | C23: 217000 | F23: 602 | G23: 9500
B24: 101023 | C24: 218600 | F24: 603 | G24: 11000
B25: 101024 | C25: 220200 | F25: 604 | G25: 11900
B26: 101025 | C26: 221800 | F26: 605 | G26: 14800 | H26: 研究職
B27: 101026 | C27: 223500 | F27: 801 | G27: 6300
B28: 101027 | C28: 224800 | F28: 802 | G28: 8200
B29: 101028 | C29: 226100 | F29: 803 | G29: 9300
B30: 101029 | C30: 227400 | F30: 804 | G30: 9800
B31: 101030 | C31: 228500 | F31: 805 | G31: 10700
B32: 101031 | C32: 229700 | F32: 806 | G32: 11400
B33: 101032 | C33: 230800 | F33: 807 | G33: 12300 | H33: 医療職（２）
B34: 101033 | C34: 231900 | F34: 901 | G34: 8200
B35: 101034 | C35: 233000 | F35: 902 | G35: 9500
B36: 101035 | C36: 234100 | F36: 903 | G36: 9800
B37: 101036 | C37: 235200 | F37: 904 | G37: 10200
B38: 101037 | C38: 236300 | F38: 905 | G38: 10600
B39: 101038 | C39: 237300 | F39: 906 | G39: 11800 | H39: 医療職（３）
B40: 101039 | C40: 238300
B41: 101040 | C41: 239200
B42: 101041 | C42: 240100
B43: 101042 | C43: 241100
B44: 101043 | C44: 241900
B45: 101044 | C45: 242700
B46: 101045 | C46: 243400
B47: 101046 | C47: 244000
B48: 101047 | C48: 244600
B49: 101048 | C49: 245200
B50: 101049 | C50: 245800
B51: 101050 | C51: 246400
B52: 101051 | C52: 247000
B53: 101052 | C53: 247500
B54: 101053 | C54: 248000
B55: 101054 | C55: 248400
B56: 101055 | C56: 248700
B57: 101056 | C57: 249100
B58: 101057 | C58: 249300
B59: 101058 | C59: 249600
B60: 101059 | C60: 249900
B61: 101060 | C61: 250200
B62: 101061 | C62: 250500
B63: 101062 | C63: 250800
B64: 101063 | C64: 251100
B65: 101064 | C65: 251400
B66: 101065 | C66: 251700
B67: 101066 | C67: 252000
B68: 101067 | C68: 252300
B69: 101068 | C69: 252600
B70: 101069 | C70: 252900
B71: 101070 | C71: 253200
B72: 101071 | C72: 253600
B73: 101072 | C73: 253900
B74: 101073 | C74: 254200
B75: 101074 | C75: 254500
B76: 101075 | C76: 254800
B77: 101076 | C77: 255100
B78: 101077 | C78: 255400
B79: 101078 | C79: 255700
B80: 101079 | C80: 256000
B81: 101080 | C81: 256400
B82: 101081 | C82: 256700
B83: 101082 | C83: 256800
B84: 101083 | C84: 257100
B85: 101084 | C85: 257500
B86: 101085 | C86: 257800
B87: 101086 | C87: 258100
B88: 101087 | C88: 258400
B89: 101088 | C89: 258700
B90: 101089 | C90: 259000
B91: 101090 | C91: 259400
B92: 101091 | C92: 259700
B93: 101092 | C93: 260000
B94: 101093 | C94: 260400
B95: 102001 | C95: 231900
B96: 102002 | C96: 233400
B97: 102003 | C97: 234800
B98: 102004 | C98: 236400
B99: 102005 | C99: 237900
B100: 102006 | C100: 239400
B101: 102007 | C101: 241000
B102: 102008 | C102: 242500
B103: 102009 | C103: 244000
B104: 102010 | C104: 245400
B105: 102011 | C105: 246800
B106: 102012 | C106: 248200
B107: 102013 | C107: 249400
B108: 102014 | C108: 250600
B109: 102015 | C109: 251800
B110: 102016 | C110: 253000
B111: 102017 | C111: 254200
B112: 102018 | C112: 255300
B113: 102019 | C113: 256400
B114: 102020 | C114: 257500
B115: 102021 | C115: 258500
B116: 102022 | C116: 259500
B117: 102023 | C117: 260500
B118: 102024 | C118: 261500
B119: 102025 | C119: 262600
B120: 102026 | C120: 263400
B121: 102027 | C121: 264300
B122: 102028 | C122: 265200
B123: 102029 | C123: 266100
B124: 102030 | C124: 266900
B125: 102031 | C125: 267700
B126: 102032 | C126: 268500
B127: 102033 | C127: 269200
B128: 102034 | C128: 270000
B129: 102035 | C129: 270800
B130: 102036 | C130: 271500
B131: 102037 | C131: 272200
B132: 102038 | C132: 273000
B133: 102039 | C133: 273800
B134: 102040 | C134: 274500
B135: 102041 | C135: 275200
B136: 102042 | C136: 276000
B137: 102043 | C137: 276800
B138: 102044 | C138: 277500
B139: 102045 | C139: 278300
B140: 102046 | C140: 279000
B141: 102047 | C141: 279700
B142: 102048 | C142: 280400
B143: 102049 | C143: 281300
B144: 102050 | C144: 281700
B145: 102051 | C145: 282500
B146: 102052 | C146: 283200
B147: 102053 | C147: 283800
B148: 102054 | C148: 284500
B149: 102055 | C149: 285100
B150: 102056 | C150: 285800
B151: 102057 | C151: 286400
B152: 102058 | C152: 287100
B153: 102059 | C153: 287700
B154: 102060 | C154: 288400
B155: 102061 | C155: 289000
B156: 102062 | C156: 289700
B157: 102063 | C157: 290400
B158: 102064 | C158: 290900
B159: 102065 | C159: 291400
B160: 102066 | C160: 292000
B161: 102067 | C161: 292500
B162: 102068 | C162: 293100
B163: 102069 | C163: 293600
B164: 102070 | C164: 294100
B165: 102071 | C165: 294700
B166: 102072 | C166: 295400
B167: 102073 | C167: 296000
B168: 102074 | C168: 296500
B169: 102075 | C169: 296900
B170: 102076 | C170: 297200
B171: 102077 | C171: 297300
B172: 102078 | C172: 297700
B173: 102079 | C173: 297900
B174: 102080 | C174: 298200
B175: 102081 | C175: 298400
B176: 102082 | C176: 298600
B177: 102083 | C177: 298900
B178: 102084 | C178: 299100
B179: 102085 | C179: 299400
B180: 102086 | C180: 299700
B181: 102087 | C181: 300000
B182: 102088 | C182: 300300
B183: 102089 | C183: 300600
B184: 102090 | C184: 300900
B185: 102091 | C185: 301200
B186: 102092 | C186: 301600
B187: 102093 | C187: 301700
B188: 102094 | C188: 301900
B189: 102095 | C189: 302300
B190: 102096 | C190: 302700
B191: 102097 | C191: 302900
B192: 102098 | C192: 303200
B193: 102099 | C193: 303600
B194: 102100 | C194: 304000
B195: 102101 | C195: 304200
B196: 102102 | C196: 304500
B197: 102103 | C197: 304800
B198: 102104 | C198: 305100
B199: 102105 | C199: 305300
B200: 102106 | C200: 305600
... 4068 more rows

Sheet （除算） (hidden)
B2: 〇休職 〇停職 〇大学院修学休業 〇育児休業 | D2: 月の初日から末日まで勤務しない月が１月以上あったときは、その月数の２分の１ （例）休職期間 平成２５年２月１４日～平成２６年２月１３日の場合 平成２５年３月 ～ 平成２６年１月までの １１月×１/２＝５．５月が除算となる ※ただし、育児休業の場合は、当該育児休業に係る子が１歳に達した日の属する月まで の期間については、その月数の３分の１
B6: 〇高齢者部分休業の期間 | D6: ７時間４５分をもって１日とし、３０日をもって１月として換算した月数の２分の１
B8: 〇組合専従の期間 〇自己啓発等休業 〇配偶者同行休業 | D8: 月の初日から末日まで勤務しない月が１月以上あったときは、その月数の全部の月数 ※ただし、自己啓発等休業のうち、公務運営に特に資するものと認められること等要件に 該当する場合は、その月数の２分の１

Sheet （基本額式） (hidden)
B6: 退職手当 の基本額

Sheet （7割措置） (hidden)
AL8: 別の図を組み合わせている箇所
AL9: ・「６０歳」と吹き出し
AL10: ・「退職時」と吹き出し
AL11: ・「勤続年数に」と「応じた支給率」
AL12: ・「支給率■」と「ア」及び「イ」
